bitfinex-derivatives/quotes_SOLF0:USTF0_20250623
["timestamp","ask_amount","ask_price","bid_price","bid_amount"]
[1750678531419,3.38256645,133.73,133.7,3.38256645]
[1750678531820,7.4769,133.71,133.7,3.38256645]
[1750678538426,7.4764,133.72,133.7,10.85976645]
[1750678538723,2.81582879,133.73,133.71,3.38256645]
[1750678538922,10.29142879,133.73,133.72,3.38256645]
[1750678539125,15.83954492,133.73,133.72,3.38256645]
[1750678539323,13.02361313,133.73,133.72,3.38256645]
[1750678539925,7.4756,133.73,133.72,3.38256645]
[1750678540825,13.02513294,133.73,133.72,3.38256645]
[1750678542526,5.54953294,133.73,133.72,3.38256645]
[1750678543421,36.9,133.74,133.72,10.85866645]
[1750678543726,39.71905852,133.74,133.73,3.38256645]
[1750678543927,45.27547896,133.74,133.73,3.38256645]
[1750678544318,52.75047896,133.74,133.73,3.38256645]
[1750678545124,15.85047896,133.74,133.73,3.38256645]
[1750678545729,7.4759,133.73,133.71,7.4764]
[1750678545926,7.4759,133.73,133.72,3.38256645]
[1750678546327,13.03103651,133.73,133.72,3.38256645]
[1750678546629,13.03102846,133.73,133.72,3.38256645]
[1750678547632,13.03102846,133.73,133.7,9.9124]
[1750678547832,13.03102846,133.73,133.72,3.38256645]
[1750678550134,7.4762,133.72,133.71,3.38256645]
[1750678551638,5.55465921,133.72,133.71,3.38256645]
[1750678551935,7.4761,133.72,133.71,3.38256645]
[1750678554434,7.4758,133.73,133.71,3.38256645]
[1750678554626,7.4758,133.73,133.72,3.38256645]
[1750678554935,13.03111604,133.73,133.72,3.38256645]
[1750678555335,13.03090983,133.73,133.72,3.38256645]
[1750678556131,5.55510983,133.73,133.72,3.38256645]
[1750678557035,7.4753,133.74,133.72,10.85836645]
[1750678557235,7.4753,133.74,133.73,3.38256645]
[1750678557430,5.55827535,133.74,133.73,3.38256645]
[1750678557634,5.55827535,133.74,133.73,10.85816645]
[1750678558039,138.40428213,133.75,133.73,10.85816645]
[1750678558238,138.40428213,133.75,133.74,3.38256645]
[1750678558538,146.7831242,133.75,133.74,3.38256645]
[1750678560340,139.3084242,133.75,133.74,3.38256645]
[1750678561141,146.78590976,133.75,133.74,3.38256645]
[1750678561841,689.84635952,133.79,133.74,3.38256645]
[1750678562039,36.86,133.79,133.78,3.38256645]
[1750678562343,52.58698797,133.79,133.78,3.38256645]
[1750678562638,39.68319972,133.79,133.77,3.38256645]
[1750678562844,10.29619972,133.78,133.77,3.38256645]
[1750678563846,7.473,133.78,133.77,3.38256645]
[1750678564034,10.29630878,133.78,133.77,3.38256645]
[1750678564742,7.473,133.78,133.77,3.38256645]
[1750678567945,7.4738,133.77,133.76,3.38256645]
[1750678571042,7.4731,133.78,133.76,3.38256645]
[1750678571248,7.4731,133.78,133.77,3.38256645]
[1750678574346,7.4725,133.79,133.77,3.38256645]
[1750678574546,7.4725,133.79,133.78,3.38256645]
[1750678587760,36.84,133.82,133.78,3.38256645]
[1750678587956,36.84,133.82,133.81,3.38256645]
[1750678588371,44.3105,133.82,133.81,3.38256645]
[1750678589264,7.4705,133.82,133.81,3.38256645]
[1750678589456,7.4703,133.83,133.81,3.38256645]
[1750678589657,7.4703,133.83,133.82,3.38256645]
[1750678592272,7.4703,133.83,133.82,5.27287409]
[1750678593164,7.4703,133.83,133.81,7.4711]
[1750678593357,7.4703,133.83,133.82,5.27287409]
[1750678595366,7.4697,133.84,133.82,12.74337409]
[1750678595863,7.4697,133.84,133.82,5.27287409]
[1750678597569,7.4697,133.84,133.82,12.74307409]
[1750678599671,7.4691,133.85,133.83,7.4699]
[1750678599864,7.4691,133.85,133.84,5.27287409]
[1750678600869,7.4686,133.86,133.84,5.27287409]
[1750678601067,42.27526815,133.88,133.84,5.27287409]
[1750678601264,36.82,133.88,133.84,5.27287409]
[1750678601870,7.4689,133.85,133.84,5.27287409]
[1750678604772,7.4686,133.86,133.84,5.27287409]
[1750678604966,36.82,133.88,133.84,5.27287409]
[1750678605568,7.4689,133.85,133.84,5.27287409]
[1750678607664,42.09287409,133.88,133.8,36.82]
[1750678607864,5.27287409,133.84,133.78,2.2841]
[1750678608070,36.8,133.83,133.76,2.3632]
[1750678608271,7.4725,133.79,133.77,5.27287409]
[1750678608767,7.472,133.8,133.77,5.27287409]
[1750678609478,7.472,133.8,133.77,12.74597409]
[1750678610380,7.4726,133.79,133.76,12.74647409]
[1750678612079,7.4728,133.78,133.76,5.27287409]
[1750678612275,5.27287409,133.81,133.76,5.27287409]
[1750678612480,36.8,133.8,133.75,36.8]
[1750678612779,7.4736,133.77,133.74,12.74757409]
[1750678615475,7.4743,133.76,133.73,7.4753]
[1750678616077,7.4746,133.75,133.72,49.54867409]
[1750678616676,7.78047409,133.79,133.72,42.07287409]
[1750678616975,7.4743,133.76,133.73,7.4754]
[1750678620284,36.8,133.78,133.73,7.4754]
[1750678620483,36.8,133.78,133.72,49.54877409]
[1750678620680,36.8,133.78,133.72,12.74877409]
[1750678620882,7.4748,133.75,133.72,12.74877409]
[1750678621585,7.4756,133.73,133.71,7.4766]
[1750678621783,5.27287409,133.77,133.71,7.4766]
[1750678622184,7.4752,133.74,133.71,7.4766]
[1750678623785,7.4756,133.73,133.71,7.4766]
[1750678626082,7.4762,133.72,133.7,7.477]
[1750678626287,42.09287409,133.75,133.7,7.477]
[1750678626780,42.09287409,133.75,133.71,7.4766]
[1750678627088,36.82,133.75,133.72,5.27287409]
[1750678627292,7.4742,133.76,133.73,7.4753]
[1750678628681,7.78047409,133.79,133.74,5.27287409]
[1750678628682,36.82,133.79,133.74,5.27287409]
[1750678629188,7.4732,133.78,133.75,7.4741]
[1750678629788,7.4734,133.77,133.75,7.4741]
[1750678633691,7.4732,133.78,133.75,7.4741]
[1750678634093,36.82,133.79,133.75,7.4741]
[1750678634288,7.4736,133.77,133.75,7.4741]
[1750678634590,7.4736,133.77,133.74,12.74787409]
[1750678634888,7.4736,133.77,133.74,5.27287409]
[1750678635092,36.82,133.79,133.76,5.27287409]
[1750678635794,36.82,133.81,133.76,5.27287409]
[1750678636391,7.472,133.8,133.78,5.27287409]
[1750678636592,36.82,133.81,133.78,5.27287409]
[1750678637398,36.82,133.81,133.78,12.74557409]
[1750678638799,7.4717,133.8,133.78,12.74557409]
[1750678639495,44.2913,133.81,133.79,7.4721]
[1750678639696,36.82,133.84,133.8,5.27287409]
[1750678639899,36.82,133.84,133.82,5.27287409]
[1750678640701,7.47,133.83,133.82,5.27287409]
[1750678641912,44.2896,133.84,133.82,5.27287409]
[1750678642908,7.47,133.83,133.82,5.27287409]
[1750678645804,5.27287409,133.89,133.82,5.27287409]
[1750678646101,36.8,133.87,133.84,5.27287409]
[1750678646306,7.469,133.85,133.84,5.27287409]
[1750678646710,36.8,133.87,133.82,12.74307409]
[1750678647699,36.8,133.87,133.83,7.47]
[1750678648102,36.8,133.87,133.82,5.27287409]
[1750678648302,36.8,133.87,133.83,7.4699]
[1750678648506,7.4689,133.85,133.83,7.4699]
[1750678648706,7.4689,133.85,133.83,12.74277409]
[1750678648907,7.4689,133.85,133.83,5.27287409]
[1750678650412,7.4686,133.86,133.83,12.74257409]
[1750678651214,7.469,133.85,133.83,12.74257409]
[1750678651409,7.469,133.85,133.83,5.27287409]
[1750678652808,7.469,133.85,133.83,12.74277409]
[1750678658115,5.27287409,133.86,133.8,5.27287409]
[1750678658511,36.8,133.87,133.8,5.27287409]
[1750678658813,7.4699,133.84,133.81,7.4708]
[1750678659506,7.4699,133.84,133.82,5.27287409]
[1750678661116,7.4699,133.84,133.82,12.74337409]
[1750678664619,36.8,133.87,133.82,5.27287409]
[1750678665218,36.8,133.87,133.81,12.74367409]
[1750678665416,5.27287409,133.86,133.81,5.27287409]
[1750678665822,7.4705,133.83,133.81,5.27287409]
[1750678666320,7.4705,133.83,133.81,12.74387409]
[1750678667523,7.4705,133.83,133.81,5.27287409]
[1750678669626,5.27287409,133.86,133.81,5.27287409]
[1750678670726,7.4706,133.82,133.81,5.27287409]
[1750678673525,42.05287409,133.84,133.78,7.67717409]
[1750678674027,36.78,133.84,133.78,7.67717409]
[1750678674630,7.4709,133.82,133.79,7.4719]
[1750678675232,7.4703,133.83,133.8,12.74447409]
[1750678675427,7.4703,133.83,133.8,5.27287409]
[1750678676631,7.4703,133.83,133.8,12.74427409]
[1750678677933,36.78,133.84,133.81,7.4709]
[1750678678330,36.78,133.84,133.82,5.27287409]
[1750678679625,7.47,133.83,133.82,5.27287409]
[1750678679833,36.78,133.84,133.82,5.27287409]
[1750678680432,44.2498,133.84,133.82,5.27287409]
[1750678682136,44.2498,133.84,133.82,12.74337409]
[1750678682337,7.47,133.83,133.82,5.27287409]
[1750678682937,44.2497,133.84,133.82,5.27287409]
[1750678683238,36.78,133.84,133.82,5.27287409]
[1750678683838,36.78,133.84,133.81,12.74357409]
[1750678684738,7.47,133.83,133.81,12.74357409]
[1750678691437,43.69022386,133.87,133.83,7.47]
[1750678691744,2.84439644,133.86,133.85,5.27287409]
[1750678691934,2.84418847,133.86,133.85,5.27287409]
[1750678692132,44.228,133.87,133.84,7.4692]
[1750678692332,44.228,133.87,133.84,5.27287409]
[1750678692733,44.228,133.87,133.84,12.74187409]
[1750678694446,44.228,133.87,133.85,7.4688]
[1750678695844,44.228,133.87,133.84,5.27287409]
[1750678696046,7.468,133.87,133.84,5.27287409]
[1750678696445,7.4675,133.88,133.85,7.4686]
[1750678696648,8.31733757,133.87,133.85,7.4686]
[1750678696944,5.40996925,133.89,133.85,5.27287409]
[1750678697155,7.468,133.87,133.85,12.74147409]
[1750678697645,7.4675,133.88,133.85,12.74147409]
[1750678697845,8.31729294,133.87,133.85,12.74147409]
[1750678698148,7.4675,133.88,133.85,12.74147409]
[1750678698346,8.31721976,133.87,133.85,12.74147409]
[1750678698848,8.31595051,133.87,133.85,12.74147409]
[1750678699352,8.31467541,133.87,133.85,12.74147409]
[1750678700353,7.4675,133.88,133.85,12.74147409]
[1750678700552,5.46912968,133.87,133.85,12.74147409]
[1750678701454,7.4675,133.88,133.85,12.74147409]
[1750678701947,7.4675,133.88,133.86,7.4683]
[1750678702549,10.31178863,133.88,133.86,7.4683]
[1750678702747,7.4675,133.88,133.86,7.4683]
[1750678702942,10.31178863,133.88,133.86,7.4683]
[1750678703149,7.4675,133.88,133.86,7.4683]
[1750678703441,10.31178863,133.88,133.86,7.4683]
[1750678703643,7.4675,133.88,133.86,7.4683]
[1750678703842,15.78034543,133.88,133.86,7.4683]
[1750678704158,7.4675,133.88,133.85,12.74147409]
[1750678704352,7.4675,133.88,133.87,3.37303136]
[1750678704353,15.78034543,133.88,133.87,3.37303136]
[1750678704547,7.4675,133.88,133.87,3.37303136]
[1750678704749,15.78034543,133.88,133.87,3.37303136]
[1750678704952,7.4675,133.88,133.87,3.37303136]
[1750678705148,15.78034543,133.88,133.83,9.27438363]
[1750678705349,7.4675,133.88,133.87,3.37303136]
[1750678705553,15.78034543,133.88,133.87,3.37303136]
[1750678705854,7.4675,133.88,133.87,3.37303136]
[1750678706051,15.78034543,133.88,133.87,3.37303136]
[1750678706247,7.4675,133.88,133.87,3.37303136]
[1750678706452,15.77945128,133.88,133.87,3.37303136]
[1750678706655,7.4675,133.88,133.87,3.37303136]
[1750678709848,7.4678,133.87,133.86,3.37303136]
[1750678710049,8.3110082,133.88,133.84,7.4693]
[1750678710251,8.3110082,133.88,133.86,3.37303136]
[1750678710652,7.4683,133.87,133.86,3.37303136]
[1750678711259,7.4684,133.86,133.84,7.4694]
[1750678711459,7.4684,133.86,133.85,3.37303136]
[1750678717165,7.468,133.87,133.85,3.37303136]
[1750678717365,7.468,133.87,133.86,3.37303136]
[1750678718265,7.4675,133.88,133.86,3.37303136]
[1750678718466,7.4675,133.88,133.87,3.37303136]
[1750678726172,7.4675,133.88,133.85,7.4686]
[1750678726366,7.4675,133.88,133.87,3.37303136]
[1750678729170,2.84283039,133.89,133.84,7.469]
[1750678729370,3.37303136,133.89,133.86,3.37303136]
[1750678729762,7.4678,133.87,133.86,3.37303136]
[1750678736269,15.79496407,133.87,133.86,3.37303136]
[1750678738266,15.79593709,133.87,133.86,3.37303136]
[1750678738879,12.94636226,133.87,133.86,3.37303136]
[1750678739080,15.7964245,133.87,133.86,3.37303136]
[1750678739777,7.4678,133.87,133.86,3.37303136]
[1750678740682,15.79755779,133.87,133.86,3.37303136]
[1750678741281,53.86223262,133.87,133.81,23.14995408]
[1750678741584,3.37613676,133.85,133.82,3.37613676]
[1750678741785,8.79169285,133.86,133.82,3.37613676]
[1750678741981,8.79169285,133.86,133.81,7.4709]
[1750678741982,8.32881557,133.85,133.83,3.37613676]
[1750678742283,8.32833907,133.84,133.83,3.37613676]
[1750678742482,7.4701,133.83,133.82,3.37613676]
[1750678742986,7.4697,133.84,133.82,3.37613676]
[1750678745978,36.74,133.87,133.84,7.4694]
[1750678746179,42.15169361,133.9,133.86,3.37613676]
[1750678746376,13.73023021,133.89,133.88,3.37613676]
[1750678746985,15.7852366,133.89,133.88,3.37613676]
[1750678747192,21.19693021,133.89,133.88,3.37613676]
[1750678747490,21.19519032,133.89,133.88,3.37613676]
[1750678747689,7.4673,133.88,133.87,3.37613676]
[1750678747888,15.7794189,133.88,133.87,3.37613676]
[1750678748389,15.7794189,133.88,133.85,12.73889091]
[1750678748583,7.4673,133.88,133.85,12.73889091]
[1750678749089,7.4673,133.88,133.86,7.4682]
[1750678750994,7.467,133.89,133.86,7.4682]
[1750678751292,8.31130727,133.88,133.86,7.4682]
[1750678751490,12.88337142,133.89,133.86,7.4682]
[1750678751689,15.78273559,133.88,133.86,7.4682]
[1750678751892,7.4673,133.88,133.86,5.27029091]
[1750678753189,7.4673,133.88,133.86,12.73859091]
[1750678753791,42.15440493,133.9,133.86,12.73859091]
[1750678753792,7.4668,133.89,133.86,12.73859091]
[1750678753987,8.31503809,133.88,133.86,12.73859091]
[1750678754296,7.4668,133.89,133.86,12.73859091]
[1750678756099,7.4668,133.89,133.87,7.4678]
[1750678756597,36.74,133.92,133.88,5.27029091]
[1750678756799,8.31649043,133.91,133.88,5.27029091]
[1750678757001,8.31649043,133.9,133.88,5.27029091]
[1750678757189,42.15477852,133.92,133.88,5.27029091]
[1750678757390,7.4661,133.9,133.88,5.27029091]
[1750678757997,7.4657,133.91,133.88,12.73729091]
[1750678759202,12.92754143,133.91,133.88,12.73729091]
[1750678759694,7.4661,133.9,133.88,12.73729091]
[1750678759899,7.4661,133.9,133.88,5.27029091]
[1750678762498,7.4666,133.89,133.86,9.9842]
[1750678762704,7.4666,133.89,133.87,5.27029091]
[1750678768209,7.4666,133.89,133.88,3.37203256]
[1750678771007,40.11203256,133.92,133.86,9.9841]
[1750678771008,7.4673,133.88,133.86,9.9841]
[1750678771214,7.4673,133.88,133.87,3.37203256]
[1750678771407,36.74,133.92,133.87,3.37203256]
[1750678771607,7.467,133.89,133.88,3.37203256]
[1750678773213,7.4674,133.88,133.87,3.37203256]
[1750678774816,7.4674,133.88,133.85,7.4685]
[1750678775019,7.4674,133.88,133.87,3.37203256]
[1750678776405,44.1869,133.89,133.87,3.37203256]
[1750678776610,44.1869,133.89,133.88,3.37203256]
[1750678777112,36.72,133.89,133.88,3.37203256]
[1750678778209,36.72,133.89,133.87,12.73662322]
[1750678778807,36.72,133.89,133.87,5.26912322]
[1750678779007,7.4658,133.91,133.88,7.4672]
[1750678780515,44.1852,133.92,133.9,7.4661]
[1750678780712,36.72,133.92,133.9,5.26912322]
[1750678781313,44.1853,133.92,133.9,12.73512322]
[1750678784422,7.4653,133.92,133.9,12.73512322]
[1750678786721,8.31864938,133.94,133.9,5.26912322]
[1750678786919,8.31864938,133.94,133.92,5.26912322]
[1750678787109,2.84537216,133.94,133.92,5.26912322]
[1750678787313,50.44913619,133.96,133.92,5.26912322]
[1750678787515,7.4643,133.94,133.92,5.26912322]
[1750678787716,15.78156921,133.94,133.92,5.26912322]
[1750678787915,7.4643,133.94,133.92,5.26912322]
[1750678788223,15.78153986,133.94,133.92,5.26912322]
[1750678788422,7.4643,133.94,133.92,5.26912322]
[1750678788722,7.4644,133.93,133.92,5.26912322]
[1750678792423,15.79272124,133.94,133.92,5.26912322]
[1750678793024,7.4642,133.94,133.92,5.26912322]
[1750678793228,15.79357117,133.94,133.92,5.26912322]
[1750678793425,7.4642,133.94,133.92,5.26912322]
[1750678793627,15.79357117,133.94,133.92,5.26912322]
[1750678793830,7.4642,133.94,133.92,5.26912322]
[1750678794023,15.79357117,133.94,133.92,5.26912322]
[1750678794221,7.4642,133.94,133.92,5.26912322]
[1750678794420,7.4644,133.93,133.92,5.26912322]
[1750678796431,7.4641,133.94,133.92,5.26912322]
[1750678796630,15.79247172,133.94,133.92,5.26912322]
[1750678796833,7.4641,133.94,133.92,5.26912322]
[1750678797137,8.32837172,133.94,133.92,12.73382322]
[1750678797433,10.31372881,133.95,133.92,12.73382322]
[1750678798025,7.4635,133.95,133.92,12.73382322]
[1750678798228,10.31484722,133.95,133.92,12.73382322]
[1750678798827,7.4635,133.95,133.92,12.73382322]
[1750678799031,10.31483336,133.95,133.92,12.73382322]
[1750678799231,7.464,133.94,133.92,12.73382322]
[1750678800233,7.4644,133.93,133.91,7.4652]
[1750678800426,8.32936469,133.95,133.89,39.1869]
[1750678800731,7.4644,133.93,133.92,3.36938638]
[1750678801229,7.4661,133.9,133.89,6.9652391]
[1750678801435,40.06938638,133.93,133.89,3.36938638]
[1750678801630,48.39965998,133.93,133.89,3.36938638]
[1750678802034,7.4661,133.9,133.89,3.36938638]
[1750678802335,36.7,133.93,133.88,2.3237]
[1750678802528,7.4664,133.9,133.87,12.73555528]
[1750678803434,8.3309866,133.92,133.87,12.73555528]
[1750678803435,7.4667,133.89,133.87,12.73555528]
[1750678803937,8.3309866,133.92,133.87,12.73555528]
[1750678804137,7.4664,133.9,133.87,12.73555528]
[1750678805435,7.4664,133.9,133.87,7.4673]
[1750678805635,7.4664,133.9,133.87,12.73555528]
[1750678807237,7.4658,133.91,133.88,7.4672]
[1750678808737,7.4661,133.9,133.88,7.4672]
[1750678811649,7.4661,133.9,133.87,19.70099438]
[1750678812046,7.4669,133.89,133.87,6.9652391]
[1750678812246,7.4669,133.89,133.87,5.26825528]
[1750678812548,7.4669,133.89,133.87,12.73595528]
[1750678813338,8.31972871,133.92,133.87,5.26825528]
[1750678813550,2.84510722,133.92,133.87,5.26825528]
[1750678813750,41.98825528,133.93,133.86,12.23349438]
[1750678813945,8.31927957,133.92,133.86,19.70179438]
[1750678814146,41.98825528,133.93,133.86,19.70179438]
[1750678814452,7.467,133.89,133.86,19.70179438]
[1750678817642,7.4673,133.88,133.86,19.70179438]
[1750678820044,7.467,133.89,133.86,19.70179438]
[1750678820447,8.31468843,133.91,133.86,19.70179438]
[1750678820746,7.4672,133.89,133.86,19.70179438]
[1750678821453,7.4672,133.89,133.87,7.4677]
[1750678822150,7.4672,133.89,133.87,14.4329391]
[1750678822351,7.4672,133.89,133.88,3.37201754]
[1750678827152,40.09201754,133.91,133.86,6.9652391]
[1750678827153,7.4678,133.87,133.86,6.9652391]
[1750678827357,7.4678,133.87,133.86,3.37201754]
[1750678829360,7.4675,133.88,133.86,3.37201754]
[1750678829555,2.84550908,133.9,133.87,3.37201754]
[1750678829755,36.72,133.91,133.88,3.37201754]
[1750678829949,7.4665,133.9,133.88,3.37201754]
[1750678830359,36.72,133.91,133.88,3.37201754]
[1750678830755,7.4661,133.9,133.88,3.37201754]
[1750678831055,7.4661,133.9,133.89,3.37201754]
[1750678831263,7.4661,133.9,133.87,14.4326391]
[1750678831453,7.4661,133.9,133.89,3.37201754]
[1750678831653,7.4668,133.89,133.88,3.37201754]
[1750678832255,7.4668,133.89,133.87,5.26899741]
[1750678832659,7.4668,133.89,133.87,12.73669741]
[1750678833260,7.4668,133.89,133.87,19.70193651]
[1750678835359,7.4668,133.89,133.87,12.23423651]
[1750678839162,36.72,133.91,133.87,12.23423651]
[1750678839863,7.467,133.89,133.87,12.23423651]
[1750678843868,7.467,133.89,133.87,19.70183651]
[1750678844464,7.4672,133.88,133.87,6.9652391]
[1750678844666,8.3311037,133.9,133.86,6.9652391]
[1750678844865,8.3311037,133.89,133.86,6.9652391]
[1750678845069,41.99114394,133.91,133.86,6.9652391]
[1750678845269,8.32648369,133.9,133.86,6.9652391]
[1750678845468,41.99114394,133.91,133.86,6.9652391]
[1750678845469,8.32648369,133.89,133.86,6.9652391]
[1750678845769,7.4677,133.88,133.86,6.9652391]
[1750678846270,7.4678,133.87,133.86,6.9652391]
[1750678846668,7.4678,133.87,133.85,6.9652391]
[1750678846861,7.4678,133.87,133.86,6.9652391]
[1750678847460,7.4683,133.86,133.85,6.9652391]
[1750678850679,7.4689,133.85,133.84,6.9652391]
[1750678851567,7.4694,133.84,133.82,6.9652391]
[1750678851771,5.27087469,133.87,133.82,6.9652391]
[1750678852074,36.72,133.84,133.8,12.23611379]
[1750678852270,8.31739742,133.85,133.82,12.23611379]
[1750678852468,36.72,133.86,133.82,12.23611379]
[1750678852670,7.469,133.85,133.82,5.27087469]
[1750678852970,36.72,133.86,133.81,14.67451379]
[1750678853376,8.31344907,133.85,133.81,9.4036391]
[1750678853576,8.31233169,133.84,133.8,6.9652391]
[1750678853768,41.99087469,133.86,133.79,12.23611379]
[1750678853769,5.40401138,133.85,133.79,12.23611379]
[1750678853969,41.99087469,133.86,133.8,6.9652391]
[1750678854166,7.4709,133.82,133.8,6.9652391]
[1750678855677,7.4709,133.82,133.79,19.70811379]
[1750678856479,7.4702,133.83,133.8,7.4717]
[1750678856665,36.72,133.86,133.81,5.27087469]
[1750678856873,36.72,133.86,133.81,12.23611379]
[1750678857173,7.4697,133.84,133.81,19.70691379]
[1750678857570,7.4697,133.84,133.81,12.74167469]
[1750678859476,7.4701,133.83,133.81,12.74167469]
[1750678859676,36.72,133.86,133.81,5.27087469]
[1750678860279,7.4704,133.83,133.81,5.27087469]
[1750678861278,36.72,133.86,133.81,5.27087469]
[1750678861279,7.4696,133.84,133.81,5.27087469]
[1750678861679,7.4696,133.84,133.81,12.74167469]
[1750678861881,7.47,133.83,133.81,12.74167469]
[1750678862375,7.4697,133.84,133.81,12.74167469]
[1750678862885,7.4703,133.83,133.81,12.74167469]
[1750678864385,7.4703,133.83,133.81,5.27087469]
[1750678865284,7.4703,133.83,133.81,12.74187469]
[1750678867483,7.4698,133.84,133.82,7.4705]
[1750678871083,36.84,133.88,133.83,5.27087469]
[1750678871684,36.84,133.88,133.83,12.74047469]
[1750678872287,7.4685,133.86,133.84,3.37424644]
[1750678872588,7.4685,133.86,133.84,10.84364644]
[1750678873184,7.4685,133.86,133.84,3.37424644]
[1750678873386,7.4685,133.86,133.82,2.2913]
[1750678873691,7.4685,133.86,133.84,3.37424644]
[1750678874191,7.4685,133.86,133.84,10.84364644]
[1750678874389,7.4685,133.86,133.84,7.4694]
[1750678874791,7.4685,133.86,133.83,12.74202388]
[1750678876391,7.469,133.85,133.83,12.74202388]
[1750678877994,7.4686,133.86,133.83,12.74202388]
[1750678879397,7.4689,133.85,133.83,12.74202388]
[1750678882096,7.4689,133.85,133.83,7.4697]
[1750678882493,7.4694,133.84,133.82,15.03392388]
[1750678883588,7.4692,133.85,133.83,7.47]
[1750678890108,7.4686,133.86,133.84,7.4694]
[1750678892204,36.84,133.88,133.84,5.27232388]
[1750678892400,8.28653574,133.89,133.86,5.27232388]
[1750678892605,8.28653574,133.9,133.86,5.27232388]
[1750678892808,42.12722035,133.91,133.86,12.74032388]
[1750678893009,8.28777437,133.9,133.86,12.74032388]
[1750678893212,42.12722035,133.91,133.86,12.74032388]
[1750678893409,7.4671,133.89,133.86,12.74032388]
[1750678893707,8.28768842,133.9,133.86,5.27232388]
[1750678893907,7.4675,133.88,133.86,5.27232388]
[1750678894811,7.4675,133.88,133.86,12.74072388]
[1750678896305,7.4675,133.88,133.87,3.37286868]
[1750678899806,8.28514479,133.9,133.87,3.37286868]
[1750678899807,7.467,133.89,133.87,3.37286868]
[1750678900013,7.467,133.89,133.88,3.37286868]
[1750678901609,36.74,133.91,133.85,6.96560889]
[1750678901610,3.37286868,133.9,133.85,6.96560889]
[1750678901802,11.66100493,133.9,133.87,3.37286868]
[1750678902311,7.4672,133.88,133.87,3.37286868]
[1750678904517,7.4669,133.89,133.87,3.37286868]
[1750678904715,7.4669,133.89,133.88,3.37286868]
[1750678907814,645.3,133.93,133.88,3.37286868]
[1750678908114,8.15508848,133.95,133.86,6.96560889]
[1750678908115,36.72,133.94,133.92,3.37286868]
[1750678908320,36.72,133.94,133.93,3.37286868]
[1750678908720,2.83904984,133.95,133.93,3.37286868]
[1750678909224,8.28754422,133.95,133.93,3.37286868]
[1750678909615,40.09286868,133.96,133.93,3.37286868]
[1750678909819,7.4639,133.94,133.93,3.37286868]
[1750678910212,7.4639,133.94,133.91,12.73068788]
[1750678915221,7.464,133.94,133.91,12.73068788]
[1750678915419,7.464,133.94,133.91,5.26548788]
[1750678915619,36.72,133.96,133.91,5.26548788]
[1750678915819,45.00243008,133.96,133.91,5.26548788]
[1750678916020,7.4649,133.93,133.89,7.4664]
[1750678916324,7.4649,133.93,133.9,5.26548788]
[1750678916525,7.4651,133.92,133.9,5.26548788]
[1750678917321,8.28243008,133.95,133.9,5.26548788]
[1750678917521,45.00243008,133.96,133.9,5.26548788]
[1750678917721,50.3914641,133.96,133.9,5.26548788]
[1750678917922,2.83715888,133.95,133.9,5.26548788]
[1750678918125,2.83715888,133.95,133.9,12.73158788]
[1750678918526,45.00243008,133.96,133.9,12.73158788]
[1750678918919,7.465,133.93,133.9,12.73158788]
[1750678919726,7.4651,133.92,133.9,12.73158788]
[1750678920524,7.4651,133.92,133.9,5.26548788]
[1750678921526,7.4651,133.92,133.9,12.73158788]
[1750678921824,7.4647,133.93,133.9,5.26548788]
[1750678922218,7.4647,133.93,133.88,9.42900889]
[1750678922219,42.1652712,133.96,133.92,5.26548788]
[1750678922422,36.72,133.96,133.94,5.26548788]
[1750678922924,36.72,133.96,133.94,12.72938788]
[1750678923520,44.1832,133.96,133.94,12.72938788]
[1750678923916,7.4632,133.96,133.94,12.72938788]
[1750678924626,7.4626,133.97,133.95,7.4634]
[1750678926229,7.462,133.98,133.95,7.4631]
[1750678926427,7.462,133.98,133.96,5.26548788]
[1750678927823,7.462,133.98,133.96,12.72818788]
[1750678931030,44.1614,133.99,133.96,12.72818788]
[1750678931430,36.7,133.99,133.96,12.72818788]
[1750678931730,36.7,133.99,133.97,7.4622]
[1750678931929,46.78508788,134.02,133.97,7.4622]
[1750678932132,41.5196,134.02,133.97,7.4622]
[1750678932332,44.88673432,134.02,133.99,3.36713432]
[1750678932728,53.1504823,134.02,133.99,3.36713432]
[1750678932926,44.88673432,134.02,133.99,3.36713432]
[1750678933626,53.15640433,134.02,133.99,3.36713432]